fUSD/lending_fUSD_20240611
["ID","MTS","AMOUNT","RATE_DAILY","PERIOD"]
[329130945,1718127065066,-13560.55,0.00022054,2]
[329130946,1718127065076,-153.78342954,0.00022054,2]
[329130947,1718127065086,-1139.45,0.00022054,2]
[329130948,1718127065104,-1834.57596937,0.00022054,2]
[329130949,1718127065169,-275.54701,0.00022054,2]
[329130950,1718127065218,-322.67702063,0.00022054,2]
[329130951,1718127065228,-123.47039134,0.00022054,2]
[329130952,1718127066393,-933.844304,0.00021466,2]
[329130953,1718127066405,-1569.10228711,0.00021466,2]
[329130954,1718127066418,-897.6660486,0.00021466,2]
[329130955,1718127066431,-1522.09718711,0.00021466,2]
[329130956,1718127066441,-779.00361055,0.00022054,2]
[329130957,1718127066454,-1177.11599811,0.00022054,2]
[329130958,1718127066464,-500.0,0.00022054,2]
[329130959,1718127066475,-1540.19,0.00022054,2]
[329130960,1718127066486,-512.8,0.00022054,2]
[329130961,1718127066497,-1555.71,0.00022054,2]
[329130962,1718127066507,-812.19,0.00022054,2]
[329130963,1718127066517,-500.0,0.00022054,2]
[329130964,1718127066528,-980.5,0.00022054,2]
[329130965,1718127066543,-4151.92,0.00022054,2]
[329130966,1718127066554,-2842.37400189,0.00022054,2]
[329130967,1718127066766,-732.25253567,0.00022054,2]
[329130968,1718127066779,-4157.38093013,0.00022054,2]
[329130969,1718127066794,-788.52253231,0.00022054,2]
[329130970,1718127066803,-2315.21,0.00022054,2]
[329130971,1718127066813,-2039.9,0.00022054,2]
[329130972,1718127066822,-500.0,0.00022054,2]
[329130973,1718127066832,-314.66947908,0.00022054,2]
[329130974,1718127066845,-699.04052092,0.00022054,2]
[329130975,1718127066855,-3280.77,0.00022054,2]
[329130976,1718127066865,-492.66421838,0.00022054,2]
[329130977,1718127066877,-7.33578162,0.00022054,2]
[329130978,1718127066887,-566.09435603,0.00022054,2]
[329130979,1718127066900,-1287.29564397,0.00022054,2]
[329130980,1718127066910,-608.11,0.00022054,2]
[329130981,1718127066920,-2172.19,0.00022054,2]
[329130982,1718127066930,-134.75848725,0.00022054,2]
[329130983,1718127066942,-365.24151275,0.00022054,2]
[329130984,1718127066952,-55.37885163,0.00022054,2]
[329130985,1718127067106,-444.62114837,0.00022054,2]
[329130986,1718127067118,-455.30834999,0.00022054,2]
[329130987,1718127067223,-72.07797306,0.00022054,2]
[329130988,1718127067237,-489.94951296,0.00022054,2]
[329130989,1718127068617,-354.37716682,0.00022054,2]
[329130990,1718127074279,300.0,0.00019725,2]
[329130994,1718127245180,2623.65924746,0.000118,2]
[329130996,1718127292900,161.01822109,0.000118,2]
[329130997,1718127307925,155.0,0.000118,2]
[329130998,1718127311443,2476.1930194,0.000118,2]
[329130999,1718127322546,687.78527441,0.00012,2]
[329131000,1718127322639,530.4099816,0.00012,2]
[329131001,1718127322720,1393.01022255,0.00012,2]
[329131002,1718127329400,467.093,0.000118,2]
[329131003,1718127330177,2139.89677745,8.85e-05,2]
[329131004,1718127330205,413.37689436,8.85e-05,2]
[329131005,1718127332836,893.21093344,0.0001121,2]
[329131010,1718127395202,951.75620783,0.0001,2]
[329131011,1718127580555,300.0,0.00027736,120]
[329131013,1718127944083,156.04,0.00011172,2]
[329131014,1718127949210,-367.35120109,0.00012576,2]
[329131015,1718127950304,522.69878769,0.00011171,2]
[329131016,1718127957378,699.05138329,0.0001117,2]
[329131017,1718128027733,-220.90160751,0.00012573,2]
[329131018,1718128035205,-249.93797986,0.00012573,2]
[329131019,1718128039141,-1880.32704863,0.00012573,2]
[329131020,1718128039163,-328.09103155,0.00012573,2]
[329131021,1718128039186,-1827.66779074,0.00012576,2]
[329131022,1718128039208,-53.52519955,0.00012598,2]
[329131023,1718128054116,-233.72586596,0.00012598,2]
[329131024,1718128054142,-466.92,0.00012851,2]
[329131025,1718128054165,-364.20577069,0.00013787,2]
[329131026,1718128054188,-282.84,0.00013788,2]
[329131027,1718128054215,-150.0,0.00013863,2]
[329131028,1718128054240,-752.03196948,0.000139,2]
[329131029,1718128054264,-954.54838896,0.00013985,2]
[329131030,1718128054290,-1819.49043748,0.00013989,2]
[329131031,1718128054318,-549.45,0.0001399,3]
[329131032,1718128054343,-539.65,0.0001399,6]
[329131033,1718128054368,-1367.74,0.0001399,2]
[329131034,1718128054392,-525.24750184,0.00013998,2]
[329131035,1718128054416,-334.60984038,0.00013998,2]
[329131036,1718128054468,-28.77031274,0.00013998,2]
[329131037,1718128054500,-335.38617073,0.00013998,2]
[329131038,1718128054534,-241.35294466,0.00013998,2]
[329131039,1718128054560,-186.30175631,0.00013998,2]
[329131040,1718128054583,-191.35915009,0.00013998,2]
[329131041,1718128054606,-1144.98069744,0.00013998,2]
[329131042,1718128054630,-599.27979208,0.00013998,2]
[329131043,1718128054657,-184.87606117,0.00013998,2]
[329131044,1718128054680,-155.0,0.00013998,2]
[329131045,1718128054703,-217.18638029,0.00013998,2]
[329131046,1718128054726,-155.0,0.00013998,2]
[329131047,1718128054752,-296.86150818,0.00013998,2]
[329131048,1718128054775,-158.26733888,0.00013998,2]
[329131049,1718128054802,-155.35592478,0.00013998,2]
[329131050,1718128054826,-570.90998058,0.00013998,2]
[329131051,1718128097335,155.0,0.0001117,2]
[329131052,1718128147112,-364.20577069,0.00013896,2]
[329131053,1718128147143,-2000.25333624,0.00013897,2]
[329131054,1718128147168,-2000.25333624,0.00013897,2]
[329131055,1718128147198,-2000.25333624,0.00013897,2]
[329131056,1718128147223,-161.94729934,0.00013898,2]
[329131057,1718128147249,-2670.90413015,0.00013997,2]
[329131058,1718128147275,-315.3525824,0.00013998,2]
[329131059,1718128147299,-156.52275844,0.00013998,2]
[329131060,1718128147324,-531.15011943,0.00013998,2]
[329131061,1718128147348,-350.15108588,0.00013998,2]
[329131062,1718128147372,-3019.72982412,0.00013998,2]
[329131063,1718128147400,-156.73863442,0.00013998,2]
[329131064,1718128147425,-334.29552451,0.00013998,2]
[329131065,1718128147451,-525.50104401,0.00013998,2]
[329131066,1718128147476,-522.42316366,0.00013998,2]
[329131067,1718128147501,-1250.35702426,0.00013998,2]
[329131068,1718128147541,-217.40325314,0.00013998,2]
[329131069,1718128147569,-511.59905009,0.00013998,2]
[329131070,1718128147594,-327.44604499,0.00013998,2]
[329131071,1718128147884,-298.63326858,0.00013998,2]
[329131072,1718128147910,-234.47326381,0.00013998,2]
[329131073,1718128147935,-168.35014936,0.00013999,2]
[329131074,1718128150276,-735.11241375,0.00013999,2]
[329131075,1718128150308,-18254.41023292,0.00013999,2]
[329131076,1718128150341,-98396.66735333,0.00014,2]
[329131077,1718128165483,-42225.56674,0.00014,2]
[329131078,1718128174140,-1141.27186332,0.00014,2]
[329131104,1718128232882,-674.44896287,0.00014,2]
[329131105,1718128232939,-6155.85871046,0.00014,2]
[329131106,1718128233044,-7987.01424638,0.00014,2]
[329131107,1718128233060,-219252.03023563,0.00014,2]
[329131109,1718128233257,-7754.62903657,0.00014,2]
[329131122,1718128238254,-28393.13165076,0.00014,2]
[329131123,1718128238461,-113236.66143158,0.00014,2]
[329131124,1718128238471,-168.38872861,0.00014022,2]
[329131125,1718128238481,-364.20577069,0.00014121,2]
[329131126,1718128238491,-2043.00028329,0.00014122,2]
[329131127,1718128238502,-312.94323548,0.00014222,2]
[329131128,1718128238512,-324.16789862,0.00014222,2]
[329131129,1718128238522,-150.0,0.00014304,2]
[329131130,1718128238534,-500.0,0.00014322,2]
[329131131,1718128238544,-2318.96,0.00014361,2]
[329131132,1718128238567,-200.0,0.00014456,2]
[329131133,1718128238578,-250.0,0.00014491,2]
[329131134,1718128238590,-1861.42,0.00014493,2]
[329131135,1718128238600,-1371.38,0.00014678,2]
[329131136,1718128238611,-400.0,0.000148,5]
[329131137,1718128238622,-800.0,0.000149,5]
[329131138,1718128238632,-219.65,0.00014904,3]
[329131139,1718128238643,-5216.82828073,0.00014915,2]
[329131140,1718128238660,-468.01734492,0.00014915,2]
[329131141,1718128238670,-152.43,0.0001499,2]
[329131142,1718128238681,-989.55265498,0.00014998,2]
[329131143,1718128238693,-510.44734502,0.00014998,2]
[329131144,1718128238706,-72969.55265498,0.00015,2]
[329131147,1718128240973,-264881.49053729,0.00015,2]
[329131148,1718128240986,-703.25292583,0.00015,2]
[329131149,1718128241567,-708.71801,0.00015,2]
[329131157,1718128246089,-4816.1476439,0.00015,2]
[329131158,1718128246445,-5462.5772351,0.00015,2]
[329131159,1718128246462,-7876.83760545,0.00015,2]
[329131160,1718128246726,-1607.42264934,0.00015,2]
[329131161,1718128246739,-308343.48769159,0.00015,2]
[329131162,1718128246750,-187.56162543,0.00015015,2]
[329131163,1718128246762,-466.92,0.00015115,2]
[329131164,1718128246774,-157.58,0.0001527,2]
[329131165,1718128246785,-200.0,0.00015336,2]
[329131166,1718128246795,-157.58,0.00015337,2]
[329131167,1718128246808,-2043.00028323,0.00015378,2]
[329131168,1718128246819,-157.58,0.00015403,2]
[329131169,1718128246830,-173.51,0.0001542,2]
[329131170,1718128246841,-157.58,0.00015469,2]
[329131171,1718128246851,-250.0,0.00015473,2]
[329131172,1718128246862,-157.58,0.00015536,2]
[329131173,1718128246872,-453.11,0.00015567,2]
[329131174,1718128246883,-157.58,0.00015602,2]
[329131175,1718128246894,-157.58,0.00015668,2]
[329131176,1718128246905,-157.58,0.00015735,2]
[329131177,1718128246917,-300.0,0.00015743,2]
[329131178,1718128246927,-5684.84562564,0.00015779,2]
[329131179,1718128246937,-157.58,0.00015801,2]
[329131180,1718128246948,-157.58,0.00015867,2]
[329131192,1718128247212,-306.91,0.0001589,4]
[329131193,1718128247240,-157.58,0.00015933,2]
[329131194,1718128247251,-157.58,0.00016,2]
[329131195,1718128247261,-157.58,0.00016066,2]
[329131196,1718128247272,-8159.71,0.00016084,2]
[329131198,1718128247282,-312.94323546,0.00016121,2]
[329131200,1718128247293,-168.29,0.00016304,2]
[329131202,1718128247305,-703.63,0.00016438,2]
[329131204,1718128247316,-456.22,0.00016438,2]
[329131206,1718128247326,-2043.00028323,0.00016634,2]
[329131208,1718128247338,-5684.84562564,0.00016643,2]
[329131210,1718128247349,-167.3,0.00016971,2]
[329131212,1718128247360,-300.0,0.00017113,2]
[329131215,1718128247370,-1861.42,0.00017233,2]
[329131217,1718128247381,-466.92,0.00017379,2]
[329131219,1718128247392,-5684.84562564,0.00017507,2]
[329131221,1718128247403,-324.1678986,0.00017667,2]
[329131223,1718128247413,-2043.00028323,0.0001789,2]
[329131225,1718128247424,-312.94323546,0.0001802,2]
[329131227,1718128247436,-5684.84562564,0.00018371,2]
[329131229,1718128247446,-167.3,0.00018372,2]
[329131231,1718128247460,-172.19,0.00019066,2]
[329131233,1718128247471,-158.985,0.0001907,2]
[329131235,1718128247481,-1000.0,0.00019107,2]
[329131237,1718128247493,-2043.00028323,0.00019145,2]
[329131239,1718128247503,-158.985,0.00019156,2]
[329131241,1718128247514,-500.0,0.00019178,2]
[329131243,1718128247525,-500.0,0.00019178,2]
[329131245,1718128247535,-473.3626991,0.00019178,2]
[329131247,1718128247546,-632.4545019,0.00019178,2]
[329131249,1718128247574,-172.1673832,0.00019178,2]
[329131251,1718128247586,-500.0,0.00019178,2]
[329131253,1718128247597,-2021.0,0.0001921,2]
[329131255,1718128247608,-2021.0,0.0001921,2]
[329131257,1718128247619,-1459.0,0.00019212,2]
[329131259,1718128247630,-5684.84562564,0.00019235,2]
[329131261,1718128247641,-158.985,0.00019243,2]
[329131263,1718128247652,-158.985,0.00019331,2]
[329131265,1718128247663,-156.91,0.00019371,2]
[329131267,1718128247675,-156.91,0.00019419,2]
[329131269,1718128247688,-156.91,0.00019468,2]
[329131271,1718128247699,-466.92,0.00019643,2]
[329131274,1718128247713,-167.3,0.00019772,2]
[329131275,1718128247725,-312.94323546,0.00019918,2]
[329131278,1718128247737,-1861.42,0.00019973,2]
[329131280,1718128247747,-5684.84562564,0.000201,2]
[329131281,1718128247758,-226.7178388,0.000201,2]
[329131283,1718128247769,-2043.00028323,0.00020401,2]
[329131286,1718128247780,-201.98,0.0002095,2]
[329131287,1718128247790,-3625.39762921,0.00020951,2]
[329131290,1718128247800,-187.56162543,0.00020954,2]
[329131291,1718128247811,-5684.84562564,0.00020964,2]
[329131293,1718128247821,-172.19,0.00020973,2]
[329131295,1718128247832,-250000.0,0.00021,2]
[329131297,1718128247842,-202.28,0.00021054,2]
[329131299,1718128247853,-522.71,0.00021068,2]
[329131301,1718128247863,-150.0,0.00021068,2]
[329131303,1718128247874,-352.2,0.00021068,2]
[329131305,1718128247885,-150.0,0.00021068,2]
[329131307,1718128247896,-300.0,0.00021068,2]
[329131309,1718128247907,-327.75,0.00021068,2]
[329131311,1718128247917,-422.78,0.00021068,2]
[329131313,1718128247928,-324.1678986,0.00021112,2]
[329131315,1718128247939,-845.18,0.00021178,2]
[329131317,1718128247950,-150.0,0.00021288,2]
[329131320,1718128247963,-150.0,0.00021288,2]
[329131322,1718128247974,-164.25,0.00021288,2]
[329131324,1718128247984,-353.53,0.00021288,2]
[329131326,1718128247995,-150.0,0.00021288,2]
[329131328,1718128248006,-150.0,0.00021288,2]
[329131330,1718128248016,-150.0,0.00021288,2]
[329131332,1718128248027,-164.25,0.00021288,2]
[329131334,1718128248037,-353.53,0.00021288,2]
[329131336,1718128248047,-150.0,0.00021288,2]
[329131338,1718128248057,-526.55,0.00021288,2]
[329131340,1718128248067,-526.55,0.00021288,2]
[329131342,1718128248078,-422.78,0.00021288,2]
[329131344,1718128248088,-164.25,0.00021288,2]
[329131346,1718128248098,-422.78,0.00021288,2]
[329131348,1718128248109,-1000.0,0.00021495,2]
[329131350,1718128248119,-1300.0,0.000216,7]
[329131352,1718128248130,-2134.8424,0.00021617,2]
[329131354,1718128248140,-2043.00028323,0.00021657,2]
[329131356,1718128248151,-412.75360643,0.00021687,2]
[329131358,1718128248162,-1700.0,0.000217,7]
[329131360,1718128248175,-203.86,0.00021711,2]
[329131362,1718128248185,-775.62362508,0.00021715,2]
[329131364,1718128248196,-1625.08193792,0.00021715,2]
[329131366,1718128248208,-1403.32727994,0.00021715,2]
[329131368,1718128248218,-2085.92127557,0.00021716,2]
[329131370,1718128248230,-264.45323394,0.00021716,2]
[329131372,1718128248241,-245000.0,0.00021717,2]
[329131374,1718128248251,-1000.0,0.00021717,2]
[329131376,1718128248262,-100000.0,0.00021717,2]
[329131378,1718128248273,-500.0,0.00021717,2]
[329131380,1718128248284,-3619.3032,0.00021717,2]
[329131382,1718128248295,-2656.089655,0.00021717,2]
[329131384,1718128248306,-3658.43,0.00021726,2]
[329131386,1718128248317,-3668.695,0.00021726,2]
[329131388,1718128248328,-25699.69,0.00021757,2]
[329131390,1718128248339,-6313.04,0.00021757,2]
[329131392,1718128248350,-3362.25,0.00021757,2]
[329131394,1718128248361,-453.11,0.00021794,2]
[329131396,1718128248372,-2100.0,0.000218,7]
[329131398,1718128248383,-1000.0,0.00021817,2]
[329131400,1718128248394,-163.34669478,0.00021817,2]
[329131402,1718128248407,-312.94323546,0.00021817,2]
[329131404,1718128248419,-580.45440327,0.00021817,2]
[329131406,1718128248429,-2136.71934769,0.00021817,2]
[329131407,1718128248440,-5684.84562564,0.00021828,2]
[329131408,1718128248450,-1483.38225,0.0002183,2]
[329131409,1718128248464,-370.11444388,0.0002184,2]
[329131410,1718128248475,-400.0,0.000219,7]
[329131411,1718128248487,-1234.0,0.000219,2]
[329131412,1718128248498,-466.92,0.00021907,2]
[329131413,1718128248510,-196.63,0.00021912,2]
[329131414,1718128248520,-3065.39010227,0.00021916,2]
[329131416,1718128248531,-500.0,0.00021917,2]
[329131418,1718128248542,-527.48875321,0.00021917,2]
[329131419,1718128248555,-500.0,0.00021917,2]
[329131421,1718128248578,-500.0,0.00021917,2]
[329131423,1718128248588,-500.0,0.00021917,2]
[329131425,1718128248599,-500.0,0.00021917,2]
[329131427,1718128248609,-500.0,0.00021917,2]
[329131429,1718128248621,-500.0,0.00021917,2]
[329131431,1718128248631,-500.0,0.00021917,2]
[329131433,1718128248643,-376.56244272,0.00021917,2]
[329131435,1718128248654,-500.0,0.00021917,2]
[329131437,1718128248665,-512.9949725,0.00021917,2]
[329131439,1718128248675,-500.0,0.00021917,2]
[329131441,1718128248686,-500.0,0.00021917,2]
[329131443,1718128248697,-500.0,0.00021917,2]
[329131445,1718128248711,-508.92404301,0.00021917,2]
[329131447,1718128248724,-319.21869439,0.00021917,2]
[329131449,1718128248736,-605.29,0.00021917,2]
[329131451,1718128248746,-500.0,0.00021917,2]
[329131453,1718128248757,-500.0,0.00021917,2]
[329131455,1718128248768,-500.0,0.00021917,2]
[329131457,1718128248779,-500.0,0.00021917,2]
[329131459,1718128248789,-639.98,0.00021917,2]
[329131461,1718128248801,-500.0,0.00021917,2]
[329131463,1718128248813,-500.0,0.00021917,2]
[329131465,1718128248823,-500.0,0.00021917,2]
[329131467,1718128248834,-500.0,0.00021917,2]
[329131469,1718128248845,-447.60023228,0.00021917,2]
[329131471,1718128248855,-500.0,0.00021917,2]
[329131473,1718128248866,-500.0,0.00021917,2]
[329131475,1718128248878,-668.85,0.00021917,2]
[329131476,1718128248889,-500.0,0.00021917,2]
[329131479,1718128248901,-540.3538234,0.00021917,2]
[329131481,1718128248913,-500.0,0.00021917,2]
[329131483,1718128248924,-500.0,0.00021917,2]
[329131485,1718128248936,-500.0,0.00021917,2]
[329131486,1718128248947,-500.0,0.00021917,2]
[329131489,1718128248961,-500.0,0.00021917,2]
[329131490,1718128248972,-560.78,0.00021917,2]
[329131492,1718128248983,-717.35,0.00021917,2]
[329131494,1718128248994,-665.6,0.00021917,2]
[329131497,1718128249005,-500.0,0.00021917,2]
[329131499,1718128249016,-500.0,0.00021917,2]
[329131501,1718128249027,-500.0,0.00021917,2]
[329131503,1718128249037,-802.08,0.00021917,2]
[329131504,1718128249048,-500.0,0.00021917,2]
[329131506,1718128249059,-500.0,0.00021917,2]
[329131509,1718128249070,-500.0,0.00021917,2]
[329131510,1718128249081,-500.0,0.00021917,2]
[329131512,1718128249091,-500.0,0.00021917,2]
[329131515,1718128249102,-500.0,0.00021917,2]
[329131516,1718128249113,-500.0,0.00021917,2]
[329131518,1718128249123,-500.0,0.00021917,2]
[329131520,1718128249134,-500.0,0.00021917,2]
[329131522,1718128249145,-727.49,0.00021917,2]
[329131524,1718128249156,-500.0,0.00021917,2]
[329131526,1718128249166,-500.0,0.00021917,2]
[329131528,1718128249177,-500.0,0.00021917,2]
[329131530,1718128249188,-432.02456557,0.00021917,2]
[329131532,1718128249199,-500.0,0.00021917,2]
[329131534,1718128249214,-500.0,0.00021917,2]
[329131536,1718128249225,-522.96,0.00021917,2]
[329131538,1718128249235,-500.0,0.00021917,2]
[329131540,1718128249246,-500.0,0.00021917,2]
[329131542,1718128249257,-545.14,0.00021917,2]
[329131545,1718128249268,-512.09,0.00021917,2]
[329131546,1718128249278,-500.0,0.00021917,2]
[329131549,1718128249290,-500.0,0.00021917,2]
[329131550,1718128249301,-586.55,0.00021917,2]
[329131552,1718128249311,-500.0,0.00021917,2]
[329131555,1718128249322,-500.0,0.00021917,2]
[329131556,1718128249333,-500.0,0.00021917,2]
[329131558,1718128249343,-673.63,0.00021917,2]
[329131560,1718128249354,-500.0,0.00021917,2]
[329131562,1718128249364,-500.0,0.00021917,2]
[329131564,1718128249376,-500.0,0.00021917,2]
[329131566,1718128249387,-500.0,0.00021917,2]
[329131568,1718128249398,-513.03627354,0.00021917,2]
[329131570,1718128249409,-500.0,0.00021917,2]
[329131573,1718128249420,-500.0,0.00021917,2]
[329131575,1718128249430,-500.0,0.00021917,2]
[329131577,1718128249442,-500.0,0.00021917,2]
[329131578,1718128249454,-500.0,0.00021917,2]
[329131580,1718128249465,-500.0,0.00021917,2]
[329131582,1718128249476,-500.0,0.00021917,2]
[329131584,1718128249486,-500.0,0.00021917,2]
[329131586,1718128249496,-500.0,0.00021917,2]
[329131588,1718128249507,-500.0,0.00021917,2]
[329131590,1718128249518,-500.0,0.00021917,2]
[329131592,1718128249528,-500.0,0.00021917,2]
[329131594,1718128249539,-500.0,0.00021917,2]
[329131596,1718128249549,-500.0,0.00021917,2]
[329131598,1718128249562,-589.03,0.00021917,2]
[329131599,1718128249575,-500.0,0.00021917,2]
[329131601,1718128249585,-500.0,0.00021917,2]
[329131603,1718128249594,-500.0,0.00021917,2]
[329131604,1718128249604,-533.97508717,0.00021917,2]
[329131606,1718128249614,-500.0,0.00021917,2]
[329131608,1718128249624,-151.0,0.00021917,2]
[329131610,1718128249634,-500.0,0.00021917,2]
[329131611,1718128249644,-500.0,0.00021917,2]
[329131613,1718128249654,-500.0,0.00021917,2]
[329131615,1718128249663,-940.44,0.00021917,2]
[329131616,1718128249673,-292.64530582,0.00021917,2]
[329131618,1718128249683,-500.0,0.00021917,2]
[329131620,1718128249693,-500.0,0.00021917,2]
[329131622,1718128249705,-500.0,0.00021917,2]
[329131623,1718128249715,-500.0,0.00021917,2]
[329131625,1718128249725,-500.0,0.00021917,2]
[329131627,1718128249737,-388.21511958,0.00021917,2]
[329131628,1718128249748,-500.0,0.00021917,2]
[329131630,1718128249758,-835.77,0.00021917,2]
[329131632,1718128249767,-500.0,0.00021917,2]
[329131633,1718128249778,-500.0,0.00021917,2]
[329131635,1718128249788,-500.0,0.00021917,2]
[329131637,1718128249799,-500.0,0.00021917,2]
[329131639,1718128249809,-500.0,0.00021917,2]
[329131641,1718128249820,-500.0,0.00021917,2]
[329131643,1718128249831,-405.77251052,0.00021917,2]
[329131644,1718128249841,-724.39,0.00021917,2]
[329131646,1718128249851,-500.0,0.00021917,2]
[329131648,1718128249862,-500.0,0.00021917,2]
[329131650,1718128249872,-500.0,0.00021917,2]
[329131651,1718128249883,-512.93676593,0.00021917,2]
[329131653,1718128249893,-500.0,0.00021917,2]
[329131655,1718128249903,-500.0,0.00021917,2]
[329131656,1718128249913,-500.0,0.00021917,2]
[329131658,1718128249923,-500.0,0.00021917,2]
[329131660,1718128249933,-500.0,0.00021917,2]
[329131662,1718128249944,-728.54,0.00021917,2]
[329131663,1718128249957,-500.0,0.00021917,2]
[329131665,1718128249967,-151.0,0.00021917,2]
[329131667,1718128249978,-500.0,0.00021917,2]
[329131669,1718128249988,-500.0,0.00021917,2]
[329131670,1718128249999,-500.0,0.00021917,2]
[329131672,1718128250009,-500.0,0.00021917,2]
[329131674,1718128250019,-500.0,0.00021917,2]
[329131676,1718128250029,-529.9722669,0.00021917,2]
[329131678,1718128250039,-500.0,0.00021917,2]
[329131679,1718128250049,-500.0,0.00021917,2]
[329131681,1718128250059,-525.07901113,0.00021917,2]
[329131683,1718128250069,-500.0,0.00021917,2]
[329131685,1718128250079,-527.32746304,0.00021917,2]
[329131687,1718128250089,-500.0,0.00021917,2]
[329131688,1718128250099,-567.55634145,0.00021917,2]
[329131690,1718128250108,-579.0,0.00021917,2]
[329131692,1718128250118,-500.0,0.00021917,2]
[329131694,1718128250128,-530.25624817,0.00021917,2]
[329131696,1718128250138,-500.0,0.00021917,2]
[329131698,1718128250148,-535.19863682,0.00021917,2]
[329131699,1718128250158,-500.0,0.00021917,2]
[329131701,1718128250168,-500.0,0.00021917,2]
[329131703,1718128250178,-551.84681049,0.00021917,2]
[329131705,1718128250188,-500.0,0.00021917,2]
[329131707,1718128250199,-809.97,0.00021917,2]
[329131708,1718128250212,-500.0,0.00021917,2]
[329131710,1718128250222,-500.0,0.00021917,2]
[329131712,1718128250232,-695.47,0.00021917,2]
[329131714,1718128250242,-500.0,0.00021917,2]
[329131716,1718128250252,-500.0,0.00021917,2]
[329131718,1718128250262,-880.99,0.00021917,2]
[329131719,1718128250272,-981.11387354,0.00021917,2]
[329131721,1718128250282,-500.0,0.00021917,2]
[329131723,1718128250292,-1206.53,0.00021917,2]
[329131725,1718128250302,-500.0,0.00021917,2]
[329131727,1718128250312,-500.0,0.00021917,2]
[329131728,1718128250323,-500.0,0.00021917,2]
[329131730,1718128250333,-500.0,0.00021917,2]
[329131732,1718128250343,-500.0,0.00021917,2]
[329131734,1718128250353,-290.77435424,0.00021917,2]
[329131736,1718128250363,-500.0,0.00021917,2]
[329131737,1718128250374,-500.0,0.00021917,2]
[329131739,1718128250383,-500.0,0.00021917,2]
[329131741,1718128250394,-500.0,0.00021917,2]
[329131743,1718128250404,-500.0,0.00021917,2]
[329131745,1718128250415,-611.74,0.00021917,2]
[329131747,1718128250425,-500.0,0.00021917,2]
[329131748,1718128250435,-500.0,0.00021917,2]
[329131750,1718128250446,-500.0,0.00021917,2]
[329131752,1718128250457,-584.65,0.00021917,2]
[329131754,1718128250468,-988.98,0.00021917,2]
[329131756,1718128250478,-162.43493661,0.00021917,2]
[329131757,1718128250489,-500.0,0.00021917,2]
[329131759,1718128250499,-500.0,0.00021917,2]
[329131761,1718128250509,-583.41,0.00021917,2]
[329131763,1718128250519,-500.0,0.00021917,2]
[329131765,1718128250529,-614.62,0.00021917,2]
[329131767,1718128250539,-500.0,0.00021917,2]
[329131768,1718128250549,-155.59710243,0.00021917,2]
[329131770,1718128250571,-500.0,0.00021917,2]
[329131772,1718128250583,-500.0,0.00021917,2]
[329131774,1718128250593,-516.28125047,0.00021917,2]
[329131776,1718128250603,-500.0,0.00021917,2]
[329131778,1718128250614,-805.83,0.00021917,2]
[329131780,1718128250624,-500.0,0.00021917,2]
[329131782,1718128250634,-500.0,0.00021917,2]
[329131783,1718128250644,-2534.56,0.00021917,2]
[329131785,1718128250655,-500.0,0.00021917,2]
[329131787,1718128250665,-500.0,0.00021917,2]
[329131789,1718128250675,-500.0,0.00021917,2]
[329131791,1718128250685,-384.80027406,0.00021917,2]
[329131793,1718128250695,-500.0,0.00021917,2]
[329131794,1718128250707,-596.52,0.00021917,2]